[Event "*** SCC Grand Prix: Titled Tuesday Blitz"]
[Site "Chess.com"]
[Date "2020.09.08"]
[Round "7"]
[White "Nafania1"]
[Black "OscarAng"]
[Result "1-0"]
[WhiteElo "2405"]
[BlackElo "2244"]
[TimeControl "180+1"]
[EndTime "11:19:54 PDT"]
[Termination "Nafania1 won by checkmate"]

1. e4 {[%clk 0:03:00.9]} 1... d5 {[%clk 0:02:58.6]} 2. exd5 {[%clk 0:03:00.6]}
2... Qxd5 {[%clk 0:02:57.6]} 3. Nc3 {[%clk 0:03:00.6]} 3... Qa5 {[%clk
0:02:55.6]} 4. d4 {[%clk 0:03:00.4]} 4... c6 {[%clk 0:02:56.1]} 5. Nf3 {[%clk
0:03:00.6]} 5... Nf6 {[%clk 0:02:56.6]} 6. Ne5 {[%clk 0:02:59.7]} 6... e6 {[%clk
0:02:54.7]} 7. Bd3 {[%clk 0:02:55.6]} 7... Nbd7 {[%clk 0:02:54]} 8. Nc4 {[%clk
0:02:52.4]} 8... Qc7 {[%clk 0:02:54.1]} 9. Qf3 {[%clk 0:02:43.3]} 9... Nd5
{[%clk 0:02:49.1]} 10. O-O {[%clk 0:02:38.6]} 10... N7f6 {[%clk 0:02:44.5]} 11.
Ne4 {[%clk 0:02:08.2]} 11... Be7 {[%clk 0:02:35.4]} 12. Ne5 {[%clk 0:02:06.3]}
12... O-O {[%clk 0:02:13.3]} 13. c4 {[%clk 0:02:06.1]} 13... Nb4 {[%clk
0:02:13.5]} 14. Bb1 {[%clk 0:02:06]} 14... Nxe4 {[%clk 0:02:10.6]} 15. Qxe4
{[%clk 0:02:00.8]} 15... f5 {[%clk 0:02:11]} 16. Qe2 {[%clk 0:01:59.4]} 16...
Bf6 {[%clk 0:02:10.1]} 17. a3 {[%clk 0:01:57.1]} 17... Bxe5 {[%clk 0:02:07.4]}
18. dxe5 {[%clk 0:01:53.1]} 18... Na6 {[%clk 0:02:07.4]} 19. b4 {[%clk
0:01:52.9]} 19... Rd8 {[%clk 0:02:01.4]} 20. Bg5 {[%clk 0:01:40.5]} 20... Rd4
{[%clk 0:01:58.9]} 21. Bc2 {[%clk 0:01:37.4]} 21... b5 {[%clk 0:01:54.1]} 22. c5
{[%clk 0:01:34]} 22... Bb7 {[%clk 0:01:52.5]} 23. Rad1 {[%clk 0:01:31.2]} 23...
Rd5 {[%clk 0:01:49.9]} 24. f4 {[%clk 0:01:25.4]} 24... h6 {[%clk 0:01:49.5]} 25.
Bh4 {[%clk 0:01:25.3]} 25... Qd7 {[%clk 0:01:45.7]} 26. Bb3 {[%clk 0:01:23.8]}
26... Rd4 {[%clk 0:01:43.2]} 27. Bf2 {[%clk 0:01:18.6]} 27... Rxd1 {[%clk
0:01:38.9]} 28. Rxd1 {[%clk 0:01:18.1]} 28... Qe7 {[%clk 0:01:39.4]} 29. Rd6
{[%clk 0:01:15.6]} 29... Nc7 {[%clk 0:01:36.8]} 30. Qd3 {[%clk 0:01:07.6]} 30...
Nd5 {[%clk 0:01:32.2]} 31. Bxd5 {[%clk 0:01:07.7]} 31... exd5 {[%clk 0:01:29.6]}
32. Qxf5 {[%clk 0:01:07.6]} 32... Rf8 {[%clk 0:01:29.2]} 33. Qg4 {[%clk
0:00:37]} 33... Bc8 {[%clk 0:00:50.8]} 34. e6 {[%clk 0:00:37]} 34... Qf6 {[%clk
0:00:46.3]} 35. h3 {[%clk 0:00:37.2]} 35... Re8 {[%clk 0:00:39.6]} 36. f5 {[%clk
0:00:36.5]} 36... g6 {[%clk 0:00:37.1]} 37. Qxg6+ {[%clk 0:00:28.3]} 37... Qxg6
{[%clk 0:00:33.1]} 38. fxg6 {[%clk 0:00:28.7]} 38... Bxe6 {[%clk 0:00:32.9]} 39.
Bd4 {[%clk 0:00:28.1]} 39... a5 {[%clk 0:00:26]} 40. Rxc6 {[%clk 0:00:28]} 40...
Bf5 {[%clk 0:00:26.4]} 41. Rc7 {[%clk 0:00:26.6]} 41... axb4 {[%clk 0:00:25]}
42. axb4 {[%clk 0:00:26.7]} 42... Re4 {[%clk 0:00:16.1]} 43. Bf6 {[%clk
0:00:23.1]} 43... Re8 {[%clk 0:00:15.3]} 44. Rg7+ {[%clk 0:00:21.6]} 44... Kf8
{[%clk 0:00:15.5]} 45. Rf7+ {[%clk 0:00:20.6]} 45... Kg8 {[%clk 0:00:15.3]} 46.
Rb7 {[%clk 0:00:18.9]} 46... Bxg6 {[%clk 0:00:14.8]} 47. Rg7+ {[%clk 0:00:18.2]}
47... Kf8 {[%clk 0:00:15.2]} 48. Rxg6 {[%clk 0:00:18.6]} 48... Kf7 {[%clk
0:00:16.1]} 49. Rxh6 {[%clk 0:00:19]} 49... Re1+ {[%clk 0:00:15.5]} 50. Kh2
{[%clk 0:00:18.7]} 50... Rd1 {[%clk 0:00:16.4]} 51. Bg5 {[%clk 0:00:17.7]} 51...
d4 {[%clk 0:00:16.8]} 52. Rd6 {[%clk 0:00:17.1]} 52... d3 {[%clk 0:00:17.4]} 53.
c6 {[%clk 0:00:17.3]} 53... Rc1 {[%clk 0:00:16.9]} 54. Rd7+ {[%clk 0:00:15.5]}
54... Ke6 {[%clk 0:00:16.2]} 55. Rxd3 {[%clk 0:00:14.2]} 55... Rxc6 {[%clk
0:00:15.7]} 56. Be3 {[%clk 0:00:12.8]} 56... Rc4 {[%clk 0:00:15.8]} 57. Bc5
{[%clk 0:00:12.7]} 57... Kf5 {[%clk 0:00:16.7]} 58. Rd6 {[%clk 0:00:12.3]} 58...
Ke4 {[%clk 0:00:16.5]} 59. Rb6 {[%clk 0:00:12.3]} 59... Rc2 {[%clk 0:00:16.9]}
60. Rxb5 {[%clk 0:00:12.1]} 60... Kd5 {[%clk 0:00:17.8]} 61. Rb6 {[%clk
0:00:12]} 61... Kc4 {[%clk 0:00:16.6]} 62. Rg6 {[%clk 0:00:11.3]} 62... Re2
{[%clk 0:00:14.9]} 63. h4 {[%clk 0:00:11.4]} 63... Re6 {[%clk 0:00:12.5]} 64.
Rxe6 {[%clk 0:00:10.2]} 64... Kb5 {[%clk 0:00:12.8]} 65. h5 {[%clk 0:00:09.7]}
65... Ka4 {[%clk 0:00:12.8]} 66. h6 {[%clk 0:00:10.1]} 66... Kb5 {[%clk
0:00:13.7]} 67. h7 {[%clk 0:00:10.5]} 67... Ka4 {[%clk 0:00:14.6]} 68. h8=Q
{[%clk 0:00:10.7]} 68... Kb5 {[%clk 0:00:15.5]} 69. Qc3 {[%clk 0:00:09.5]} 69...
Ka4 {[%clk 0:00:16.4]} 70. Ra6+ {[%clk 0:00:08.9]} 70... Kb5 {[%clk 0:00:17.3]}
71. Qd3# {[%clk 0:00:08.9]} 1-0

[Event "*** SCC Grand Prix: Titled Tuesday Blitz"]
[Site "Chess.com"]
[Date "2020.09.08"]
[Round "7"]
[White "mbojan"]
[Black "FlamingPhoenix123"]
[Result "1-0"]
[WhiteElo "2794"]
[BlackElo "2568"]
[TimeControl "180+1"]
[EndTime "11:19:57 PDT"]
[Termination "mbojan won by resignation"]

1. e4 {[%clk 0:03:00.9]} 1... c5 {[%clk 0:02:59.4]} 2. Nf3 {[%clk 0:02:59.4]}
2... d6 {[%clk 0:02:59.4]} 3. d4 {[%clk 0:02:59.7]} 3... cxd4 {[%clk 0:03:00.3]}
4. Nxd4 {[%clk 0:03:00.3]} 4... Nf6 {[%clk 0:03:00.8]} 5. Nc3 {[%clk 0:03:01]}
5... Nc6 {[%clk 0:02:58.9]} 6. Be2 {[%clk 0:03:00.6]} 6... e5 {[%clk 0:02:58.7]}
7. Nf3 {[%clk 0:02:59.2]} 7... h6 {[%clk 0:02:53]} 8. O-O {[%clk 0:02:57.5]}
8... Be7 {[%clk 0:02:51]} 9. Re1 {[%clk 0:02:57.4]} 9... O-O {[%clk 0:02:41]}
10. a3 {[%clk 0:02:56.8]} 10... Be6 {[%clk 0:02:34.5]} 11. Bf1 {[%clk
0:02:55.9]} 11... a6 {[%clk 0:02:23.8]} 12. Nd5 {[%clk 0:02:53.9]} 12... Bxd5
{[%clk 0:02:19.2]} 13. exd5 {[%clk 0:02:54.8]} 13... Nb8 {[%clk 0:02:20.1]} 14.
c4 {[%clk 0:02:54.7]} 14... Nbd7 {[%clk 0:02:19]} 15. b4 {[%clk 0:02:54.9]}
15... Rc8 {[%clk 0:02:16.1]} 16. Bb2 {[%clk 0:02:52.1]} 16... Nb6 {[%clk
0:02:11.5]} 17. Rc1 {[%clk 0:02:49.6]} 17... Qd7 {[%clk 0:02:09.6]} 18. Ba1
{[%clk 0:02:32]} 18... Rc7 {[%clk 0:01:58.7]} 19. c5 {[%clk 0:02:07.9]} 19...
Rfc8 {[%clk 0:01:41.5]} 20. Qd2 {[%clk 0:01:09.6]} 20... Nbxd5 {[%clk
0:01:34.9]} 21. Rcd1 {[%clk 0:00:49.7]} 21... dxc5 {[%clk 0:01:25.8]} 22. Nxe5
{[%clk 0:00:46]} 22... Qd6 {[%clk 0:01:24.3]} 23. Bc4 {[%clk 0:00:40.5]} 23...
cxb4 {[%clk 0:01:18.6]} 24. Bxd5 {[%clk 0:00:31.7]} 24... Nxd5 {[%clk
0:01:19.5]} 25. Qxd5 {[%clk 0:00:15.3]} 25... Qxd5 {[%clk 0:01:20.4]} 26. Rxd5
{[%clk 0:00:16.1]} 26... Rc1 {[%clk 0:01:14.6]} 27. Rdd1 {[%clk 0:00:12.1]}
27... Rxd1 {[%clk 0:01:07.8]} 28. Rxd1 {[%clk 0:00:13]} 28... bxa3 {[%clk
0:01:08.7]} 29. Kf1 {[%clk 0:00:12.3]} 29... Bf6 {[%clk 0:01:03.5]} 30. Nd3
{[%clk 0:00:10.2]} 30... Bxa1 {[%clk 0:00:58.7]} 31. Rxa1 {[%clk 0:00:11.1]}
31... Rc3 {[%clk 0:00:59.4]} 32. Ke2 {[%clk 0:00:11.1]} 32... b5 {[%clk
0:00:59.4]} 33. Kd2 {[%clk 0:00:11.3]} 33... Rc6 {[%clk 0:00:48.6]} 34. Rxa3
{[%clk 0:00:11.1]} 34... Rd6 {[%clk 0:00:49]} 35. Ke2 {[%clk 0:00:09.2]} 35...
Re6+ {[%clk 0:00:48.6]} 36. Kd2 {[%clk 0:00:09.3]} 36... Rd6 {[%clk 0:00:48.9]}
37. Ke3 {[%clk 0:00:09.6]} 37... Re6+ {[%clk 0:00:49.1]} 38. Kd4 {[%clk
0:00:09.8]} 38... Rd6+ {[%clk 0:00:49.4]} 39. Kc5 {[%clk 0:00:08.8]} 39... Rg6
{[%clk 0:00:49.8]} 40. g3 {[%clk 0:00:08.6]} 40... Rf6 {[%clk 0:00:48]} 41. f4
{[%clk 0:00:08.4]} 41... Re6 {[%clk 0:00:47.4]} 42. Ra2 {[%clk 0:00:08.3]} 42...
g6 {[%clk 0:00:46.3]} 43. Nb4 {[%clk 0:00:08.1]} 43... a5 {[%clk 0:00:40.5]} 44.
Rxa5 {[%clk 0:00:04.9]} 44... Re2 {[%clk 0:00:40.6]} 45. Ra2 {[%clk 0:00:05.5]}
45... Re3 {[%clk 0:00:39.8]} 46. Kxb5 {[%clk 0:00:05.3]} 46... Kg7 {[%clk
0:00:40]} 47. Nd5 {[%clk 0:00:05.7]} 47... Rf3 {[%clk 0:00:40.2]} 48. Kc5 {[%clk
0:00:06.1]} 48... g5 {[%clk 0:00:40.3]} 49. Kd4 {[%clk 0:00:06.7]} 49... gxf4
{[%clk 0:00:40]} 50. Nxf4 {[%clk 0:00:07.6]} 50... Rb3 {[%clk 0:00:39.8]} 51.
Ke4 {[%clk 0:00:07.6]} 51... Rb4+ {[%clk 0:00:39.7]} 52. Kf3 {[%clk 0:00:08]}
52... Rb5 {[%clk 0:00:39.7]} 53. Re2 {[%clk 0:00:07.4]} 53... Rb3+ {[%clk
0:00:39.5]} 54. Re3 {[%clk 0:00:08.3]} 54... Rb4 {[%clk 0:00:39.8]} 55. Re2
{[%clk 0:00:09.2]} 55... Rb5 {[%clk 0:00:40.1]} 56. Kf2 {[%clk 0:00:10.1]} 56...
Rb3 {[%clk 0:00:40.3]} 57. Ng2 {[%clk 0:00:10.9]} 57... Rb4 {[%clk 0:00:40.5]}
58. Ne3 {[%clk 0:00:11.5]} 58... Rb5 {[%clk 0:00:40.2]} 59. Rc2 {[%clk
0:00:12.4]} 59... Rb4 {[%clk 0:00:39.5]} 60. h4 {[%clk 0:00:13.3]} 60... Rb3
{[%clk 0:00:39.2]} 61. Rc4 {[%clk 0:00:14.2]} 61... Rb2+ {[%clk 0:00:38.9]} 62.
Kf3 {[%clk 0:00:14.7]} 62... Rb3 {[%clk 0:00:39.3]} 63. Rg4+ {[%clk 0:00:15.1]}
63... Kh7 {[%clk 0:00:38.1]} 64. Rf4 {[%clk 0:00:16]} 64... Kg7 {[%clk
0:00:35.9]} 65. Rg4+ {[%clk 0:00:16.1]} 65... Kh7 {[%clk 0:00:35.8]} 66. Re4
{[%clk 0:00:17]} 66... Kg7 {[%clk 0:00:35]} 67. Rd4 {[%clk 0:00:17]} 67... Rb5
{[%clk 0:00:34.6]} 68. Rd5 {[%clk 0:00:16.8]} 68... Rb4 {[%clk 0:00:33.5]} 69.
Nf5+ {[%clk 0:00:16.2]} 69... Kf6 {[%clk 0:00:34]} 70. Nxh6 {[%clk 0:00:16.3]}
70... Kg6 {[%clk 0:00:34.4]} 71. Ng4 {[%clk 0:00:16.2]} 71... Rb3+ {[%clk
0:00:35.3]} 72. Ne3 {[%clk 0:00:16.6]} 72... Rb4 {[%clk 0:00:36.2]} 73. Rf5
{[%clk 0:00:15.9]} 73... Rb3 {[%clk 0:00:36.3]} 74. Rf4 {[%clk 0:00:16.5]} 74...
Rb4 {[%clk 0:00:36.3]} 75. Rxb4 {[%clk 0:00:16.2]} 1-0

[Event "*** SCC Grand Prix: Titled Tuesday Blitz"]
[Site "Chess.com"]
[Date "2020.09.08"]
[Round "7"]
[White "Mr_Sinigami"]
[Black "anon102030"]
[Result "1-0"]
[WhiteElo "2564"]
[BlackElo "2704"]
[TimeControl "180+1"]
[EndTime "11:19:59 PDT"]
[Termination "Mr_Sinigami won by checkmate"]

1. d4 {[%clk 0:03:00.9]} 1... Nf6 {[%clk 0:02:59.2]} 2. Nf3 {[%clk 0:03:01.1]}
2... d6 {[%clk 0:02:58.2]} 3. Bf4 {[%clk 0:03:00.1]} 3... g6 {[%clk 0:02:58.3]}
4. e3 {[%clk 0:03:00]} 4... Bg7 {[%clk 0:02:58.7]} 5. h3 {[%clk 0:03:00.2]} 5...
Nbd7 {[%clk 0:02:57.7]} 6. Be2 {[%clk 0:03:00]} 6... O-O {[%clk 0:02:58.2]} 7.
O-O {[%clk 0:02:59.5]} 7... Re8 {[%clk 0:02:57.9]} 8. c4 {[%clk 0:02:57.3]} 8...
b6 {[%clk 0:02:56.6]} 9. Nc3 {[%clk 0:02:56.4]} 9... Bb7 {[%clk 0:02:55.5]} 10.
Bh2 {[%clk 0:02:50]} 10... e6 {[%clk 0:02:49.4]} 11. a4 {[%clk 0:02:50.1]} 11...
a5 {[%clk 0:02:47]} 12. Nd2 {[%clk 0:02:46.2]} 12... d5 {[%clk 0:02:40.2]} 13.
Nb5 {[%clk 0:02:42.2]} 13... e5 {[%clk 0:02:34.9]} 14. Nf3 {[%clk 0:02:29.3]}
14... e4 {[%clk 0:02:07.7]} 15. Bxc7 {[%clk 0:02:08.9]} 15... Qe7 {[%clk
0:02:07.1]} 16. Ne5 {[%clk 0:02:02.9]} 16... Nxe5 {[%clk 0:01:56.8]} 17. Bxe5
{[%clk 0:02:00]} 17... Rad8 {[%clk 0:01:51.9]} 18. Bc7 {[%clk 0:01:46.6]} 18...
Rc8 {[%clk 0:01:48.6]} 19. Bxb6 {[%clk 0:01:35.7]} 19... dxc4 {[%clk 0:01:48.1]}
20. Rc1 {[%clk 0:01:32.4]} 20... Bd5 {[%clk 0:01:29.9]} 21. Bxa5 {[%clk
0:01:23.6]} 21... Ra8 {[%clk 0:01:20.1]} 22. Bb6 {[%clk 0:01:19.9]} 22... Nd7
{[%clk 0:01:16.6]} 23. Bc7 {[%clk 0:01:14.1]} 23... Rec8 {[%clk 0:01:07.8]} 24.
Bxc4 {[%clk 0:01:06.8]} 24... Bxc4 {[%clk 0:01:08.7]} 25. Rxc4 {[%clk
0:01:06.3]} 25... Nb6 {[%clk 0:01:08.9]} 26. Bd6 {[%clk 0:01:05.5]} 26... Qd7
{[%clk 0:00:59.6]} 27. Rxc8+ {[%clk 0:01:05.2]} 27... Rxc8 {[%clk 0:00:52.2]}
28. b3 {[%clk 0:01:04.6]} 28... Nd5 {[%clk 0:00:49.2]} 29. Bc5 {[%clk
0:01:02.3]} 29... f5 {[%clk 0:00:48.2]} 30. Qd2 {[%clk 0:00:59.9]} 30... Rb8
{[%clk 0:00:45.9]} 31. Rc1 {[%clk 0:00:58.2]} 31... Nf6 {[%clk 0:00:44]} 32. Ba3
{[%clk 0:00:52.9]} 32... Nd5 {[%clk 0:00:40.6]} 33. Qc2 {[%clk 0:00:49]} 33...
Qf7 {[%clk 0:00:36.7]} 34. Qc8+ {[%clk 0:00:31.2]} 34... Rxc8 {[%clk 0:00:34.2]}
35. Rxc8+ {[%clk 0:00:31]} 35... Bf8 {[%clk 0:00:32.8]} 36. Rxf8+ {[%clk
0:00:31.3]} 36... Qxf8 {[%clk 0:00:33.7]} 37. Bxf8 {[%clk 0:00:31.2]} 37... Kxf8
{[%clk 0:00:34.6]} 38. Kf1 {[%clk 0:00:30.4]} 38... Ke7 {[%clk 0:00:30.3]} 39.
Ke2 {[%clk 0:00:30.3]} 39... Kd7 {[%clk 0:00:31.2]} 40. Kd2 {[%clk 0:00:30.4]}
40... Kc6 {[%clk 0:00:32.1]} 41. Nc3 {[%clk 0:00:29.6]} 41... Nb4 {[%clk
0:00:31.6]} 42. f3 {[%clk 0:00:29.8]} 42... exf3 {[%clk 0:00:31.1]} 43. gxf3
{[%clk 0:00:30.7]} 43... Kd6 {[%clk 0:00:30.9]} 44. e4 {[%clk 0:00:30.7]} 44...
Ke6 {[%clk 0:00:28.3]} 45. a5 {[%clk 0:00:28.6]} 45... Kf6 {[%clk 0:00:25.9]}
46. Na4 {[%clk 0:00:27.1]} 46... Nc6 {[%clk 0:00:21.3]} 47. a6 {[%clk
0:00:26.8]} 47... fxe4 {[%clk 0:00:12.8]} 48. fxe4 {[%clk 0:00:26.4]} 48... g5
{[%clk 0:00:11.8]} 49. Ke3 {[%clk 0:00:24.5]} 49... Na7 {[%clk 0:00:12.7]} 50.
Nc3 {[%clk 0:00:23.9]} 50... h5 {[%clk 0:00:13.6]} 51. b4 {[%clk 0:00:23.7]}
51... g4 {[%clk 0:00:10.7]} 52. hxg4 {[%clk 0:00:23.4]} 52... h4 {[%clk
0:00:11.5]} 53. b5 {[%clk 0:00:23]} 53... Nc8 {[%clk 0:00:10.6]} 54. Nd5+ {[%clk
0:00:21.9]} 54... Kg5 {[%clk 0:00:11.5]} 55. b6 {[%clk 0:00:21.6]} 55... h3
{[%clk 0:00:09.4]} 56. Kf2 {[%clk 0:00:20.5]} 56... Nd6 {[%clk 0:00:08.7]} 57.
b7 {[%clk 0:00:19.2]} 57... Nxe4+ {[%clk 0:00:08.6]} 58. Kg1 {[%clk 0:00:19.5]}
58... Kxg4 {[%clk 0:00:06.9]} 59. b8=Q {[%clk 0:00:19.4]} 59... Ng5 {[%clk
0:00:07]} 60. Qf4+ {[%clk 0:00:18.5]} 60... Kh5 {[%clk 0:00:06.7]} 61. a7 {[%clk
0:00:17.7]} 61... Ne6 {[%clk 0:00:05.7]} 62. Qf5+ {[%clk 0:00:17.2]} 62... Ng5
{[%clk 0:00:06.6]} 63. a8=Q {[%clk 0:00:16.9]} 63... h2+ {[%clk 0:00:03.1]} 64.
Kh1 {[%clk 0:00:16.2]} 64... Kh4 {[%clk 0:00:04]} 65. Qh8+ {[%clk 0:00:15.4]}
65... Kg3 {[%clk 0:00:02.9]} 66. Qf4# {[%clk 0:00:15.6]} 1-0

[Event "*** SCC Grand Prix: Titled Tuesday Blitz"]
[Site "Chess.com"]
[Date "2020.09.08"]
[Round "7"]
[White "Zarinur"]
[Black "PavelChernomordik"]
[Result "0-1"]
[WhiteElo "2124"]
[BlackElo "2347"]
[TimeControl "180+1"]
[EndTime "11:20:01 PDT"]
[Termination "PavelChernomordik won on time"]

1. e4 {[%clk 0:03:00.9]} 1... g6 {[%clk 0:03:00.9]} 2. d4 {[%clk 0:02:59.3]}
2... Bg7 {[%clk 0:03:01.3]} 3. Nf3 {[%clk 0:02:58.1]} 3... d6 {[%clk 0:03:01.1]}
4. Bd3 {[%clk 0:02:51.9]} 4... c5 {[%clk 0:02:59.9]} 5. c3 {[%clk 0:02:50.6]}
5... Nc6 {[%clk 0:02:56.5]} 6. Be3 {[%clk 0:02:49.2]} 6... cxd4 {[%clk
0:02:53.4]} 7. cxd4 {[%clk 0:02:50.1]} 7... Bg4 {[%clk 0:02:51.9]} 8. Bc4 {[%clk
0:02:30.5]} 8... Nf6 {[%clk 0:02:44.6]} 9. Nc3 {[%clk 0:02:28.3]} 9... O-O
{[%clk 0:02:41.6]} 10. O-O {[%clk 0:02:24.8]} 10... Nd7 {[%clk 0:02:40.7]} 11.
d5 {[%clk 0:02:14.7]} 11... Bxf3 {[%clk 0:02:35.3]} 12. Qxf3 {[%clk 0:02:04.3]}
12... Nce5 {[%clk 0:02:34.6]} 13. Qe2 {[%clk 0:02:03.3]} 13... Nxc4 {[%clk
0:02:34]} 14. Qxc4 {[%clk 0:02:04.2]} 14... Rc8 {[%clk 0:02:32.5]} 15. Qb3
{[%clk 0:02:03.6]} 15... Qa5 {[%clk 0:02:12.3]} 16. Rac1 {[%clk 0:01:58.6]}
16... Qa6 {[%clk 0:01:59.9]} 17. Rfd1 {[%clk 0:01:53.6]} 17... Nc5 {[%clk
0:01:57.8]} 18. Bxc5 {[%clk 0:01:52.8]} 18... Rxc5 {[%clk 0:01:55]} 19. a4
{[%clk 0:01:20.5]} 19... Rfc8 {[%clk 0:01:51]} 20. Na2 {[%clk 0:01:05.8]} 20...
Qe2 {[%clk 0:01:38.9]} 21. Rxc5 {[%clk 0:00:43.9]} 21... Rxc5 {[%clk 0:01:34.1]}
22. Nc1 {[%clk 0:00:28.7]} 22... Qxe4 {[%clk 0:01:26.3]} 23. Qxb7 {[%clk
0:00:23]} 23... Qc2 {[%clk 0:01:20.1]} 24. Rf1 {[%clk 0:00:19.7]} 24... Qxc1
{[%clk 0:01:16.1]} 25. Qxa7 {[%clk 0:00:18.6]} 25... Bxb2 {[%clk 0:01:05]} 26.
a5 {[%clk 0:00:16.4]} 26... Qc4 {[%clk 0:00:54.6]} 27. a6 {[%clk 0:00:15]} 27...
Bd4 {[%clk 0:00:46.7]} 28. Qb8+ {[%clk 0:00:13.9]} 28... Rc8 {[%clk 0:00:43.6]}
29. a7 {[%clk 0:00:13.4]} 29... Bxa7 {[%clk 0:00:41.7]} 30. Qxa7 {[%clk
0:00:12.2]} 30... Rc7 {[%clk 0:00:39.1]} 31. Qb8+ {[%clk 0:00:11.5]} 31... Kg7
{[%clk 0:00:37.6]} 32. Qb2+ {[%clk 0:00:11.6]} 32... f6 {[%clk 0:00:34.5]} 33.
Qd2 {[%clk 0:00:10.2]} 33... Qc3 {[%clk 0:00:26.9]} 34. Qxc3 {[%clk 0:00:08.9]}
34... Rxc3 {[%clk 0:00:25.3]} 35. Rd1 {[%clk 0:00:07.6]} 35... f5 {[%clk
0:00:23.7]} 36. g3 {[%clk 0:00:07.7]} 36... Kf6 {[%clk 0:00:23.3]} 37. Kg2
{[%clk 0:00:07.7]} 37... g5 {[%clk 0:00:21.7]} 38. Re1 {[%clk 0:00:05.6]} 38...
Rd3 {[%clk 0:00:19]} 39. Re6+ {[%clk 0:00:05.4]} 39... Kf7 {[%clk 0:00:19]} 40.
Rh6 {[%clk 0:00:05.6]} 40... Rxd5 {[%clk 0:00:17.4]} 41. Rxh7+ {[%clk
0:00:05.6]} 41... Kf6 {[%clk 0:00:17.4]} 42. Rh6+ {[%clk 0:00:05.6]} 42... Ke5
{[%clk 0:00:16.6]} 43. Rh5 {[%clk 0:00:05.2]} 43... g4 {[%clk 0:00:15.8]} 44.
Rh7 {[%clk 0:00:04.4]} 44... e6 {[%clk 0:00:15.1]} 45. Rh6 {[%clk 0:00:04.5]}
45... Rd2 {[%clk 0:00:15.2]} 46. Kg1 {[%clk 0:00:03.4]} 46... d5 {[%clk
0:00:15.1]} 47. Kg2 {[%clk 0:00:04.3]} 47... d4 {[%clk 0:00:14.6]} 48. Rh8
{[%clk 0:00:05.2]} 48... Ke4 {[%clk 0:00:11.1]} 49. Rd8 {[%clk 0:00:06.1]} 49...
e5 {[%clk 0:00:10.4]} 50. h3 {[%clk 0:00:04.1]} 50... gxh3+ {[%clk 0:00:09]} 51.
Kxh3 {[%clk 0:00:05]} 51... Rxf2 {[%clk 0:00:08.8]} 52. Kh4 {[%clk 0:00:05.2]}
52... d3 {[%clk 0:00:07.6]} 53. Kg5 {[%clk 0:00:05.2]} 53... d2 {[%clk
0:00:07.3]} 54. Rd6 {[%clk 0:00:03.7]} 54... Ke3 {[%clk 0:00:06.9]} 55. Kf6
{[%clk 0:00:02.9]} 55... e4 {[%clk 0:00:06.4]} 56. Ke5 {[%clk 0:00:03]} 56...
Ke2 {[%clk 0:00:06.2]} 57. Rd5 {[%clk 0:00:02.8]} 57... e3 {[%clk 0:00:06.2]}
58. Kf6 {[%clk 0:00:01.9]} 58... d1=Q {[%clk 0:00:07.1]} 0-1